fUSD/lending_fUSD_20260625
["ID","MTS","AMOUNT","RATE_DAILY","PERIOD"]
[426408838,1782355848000,-801.12609496,0.00026471,2]
[426408840,1782355848000,-695.44485089,0.00026471,2]
[426408841,1782355848000,-792.13465159,0.00026471,2]
[426408835,1782355848000,-306.41138013,0.00026471,2]
[426408837,1782355848000,-630.73676836,0.00026471,2]
[426408836,1782355848000,-319.73299066,0.00026471,2]
[426408834,1782355848000,-326.26155797,0.00026471,2]
[426408831,1782355848000,-877.0446453,0.00026471,2]
[426408839,1782355848000,-644.7401809,0.00026471,2]
[426408914,1782355849000,-403.0731638,0.00026519,2]
[426408919,1782355849000,-518.3946794,0.00026519,2]
[426408918,1782355849000,-437.57117409,0.00026519,2]
[426408916,1782355849000,-1258.92656005,0.00026519,2]
[426408915,1782355849000,-151.81388328,0.00026519,2]
[426408908,1782355849000,-802.48697133,0.00026519,2]
[426408913,1782355849000,-386.44734697,0.00026519,2]
[426408912,1782355849000,-1024.2166582,0.00026519,2]
[426408909,1782355849000,-995.67100119,0.00026519,2]
[426408910,1782355849000,-696.55736849,0.00026519,2]
[426408917,1782355849000,-413.56771676,0.00026519,2]
[426408906,1782355849000,-161.56003659,0.00026519,2]
[426408911,1782355849000,-331.46531212,0.00026519,2]
[426408920,1782355849000,-171.62382693,0.00026519,2]
[426408926,1782355849000,-726.85990225,0.00026519,2]
[426408921,1782355849000,-178.96183778,0.00026519,2]
[426408923,1782355849000,-888.69797585,0.00026519,2]
[426408924,1782355849000,-169.6896681,0.00026519,2]
[426408925,1782355849000,-161.17861414,0.00026519,2]
[426408927,1782355849000,-866.7414811,0.00026519,2]
[426408928,1782355849000,-260.83643938,0.00026519,2]
[426408929,1782355849000,-465.97640955,0.00026519,2]
[426408931,1782355849000,-342.61608399,0.00026519,2]
[426408930,1782355849000,-836.44495449,0.00026519,2]
[426408933,1782355849000,-646.99439873,0.00026519,2]
[426408932,1782355849000,-169.91798892,0.00026519,2]
[426408939,1782355849000,-690.92572857,0.00026519,2]
[426408935,1782355849000,-160.27151097,0.00026519,2]
[426408922,1782355849000,-434.32580055,0.00026519,2]
[426408905,1782355849000,-706.80366166,0.00026519,2]
[426408880,1782355849000,-1329.18797768,0.00026519,2]
[426408903,1782355849000,-586.76049756,0.00026519,2]
[426408938,1782355849000,-753.39914031,0.00026519,2]
[426408879,1782355849000,-168.74185422,0.00026519,2]
[426408877,1782355849000,-460.42571651,0.00026519,2]
[426408878,1782355849000,-444.81277671,0.00026519,2]
[426408876,1782355849000,-316.89624098,0.00026519,2]
[426408882,1782355849000,-165.24014991,0.00026519,2]
[426408881,1782355849000,-169.11627441,0.00026519,2]
[426408883,1782355849000,-628.22460767,0.00026519,2]
[426408884,1782355849000,-655.08208852,0.00026519,2]
[426408888,1782355849000,-571.85051008,0.00026519,2]
[426408887,1782355849000,-427.07586005,0.00026519,2]
[426408886,1782355849000,-160.28100749,0.00026519,2]
[426408885,1782355849000,-449.1290013,0.00026519,2]
[426408907,1782355849000,-169.66575222,0.00026519,2]
[426408890,1782355849000,-458.47862072,0.00026519,2]
[426408891,1782355849000,-161.3104231,0.00026519,2]
[426408893,1782355849000,-695.72784377,0.00026519,2]
[426408894,1782355849000,-539.29067167,0.00026519,2]
[426408892,1782355849000,-327.84048675,0.00026519,2]
[426408895,1782355849000,-432.6875066,0.00026519,2]
[426408896,1782355849000,-450.11437616,0.00026519,2]
[426408899,1782355849000,-553.02252931,0.00026519,2]
[426408897,1782355849000,-698.1678654,0.00026519,2]
[426408898,1782355849000,-705.34918092,0.00026519,2]
[426408902,1782355849000,-312.09861416,0.00026519,2]
[426408901,1782355849000,-594.35293639,0.00026519,2]
[426408904,1782355849000,-403.1797739,0.00026519,2]
[426408900,1782355849000,-374.61083209,0.00026519,2]
[426408889,1782355849000,-541.09693253,0.00026519,2]
[426408936,1782355849000,-159.92647042,0.00026519,2]
[426408999,1782355849000,-779.19334066,0.00027081,2]
[426408942,1782355849000,-200.83958872,0.00026519,2]
[426408974,1782355849000,-151.0,0.000268,2]
[426408973,1782355849000,-151.0,0.000268,2]
[426408976,1782355849000,-151.0,0.000268,2]
[426408975,1782355849000,-151.0,0.000268,2]
[426408978,1782355849000,-200.0,0.00026821,2]
[426408980,1782355849000,-1056.96069608,0.00027,2]
[426408979,1782355849000,-250.0,0.00027,2]
[426408977,1782355849000,-151.0,0.000268,2]
[426408981,1782355849000,-530.0,0.00027,2]
[426408983,1782355849000,-907.93617406,0.00027032,2]
[426408982,1782355849000,-173.0,0.00027,7]
[426408984,1782355849000,-879.40120057,0.00027032,2]
[426408985,1782355849000,-805.56887195,0.00027032,2]
[426408972,1782355849000,-151.0,0.000268,2]
[426408987,1782355849000,-933.72944223,0.00027032,2]
[426408988,1782355849000,-794.72392908,0.00027032,2]
[426408989,1782355849000,-827.01016666,0.00027032,2]
[426408990,1782355849000,-1001.4076187,0.00027032,2]
[426408992,1782355849000,-869.30606361,0.00027032,2]
[426408994,1782355849000,-804.31933584,0.00027032,2]
[426408993,1782355849000,-990.16831449,0.00027032,2]
[426408991,1782355849000,-805.92522613,0.00027032,2]
[426408996,1782355849000,-834.49988691,0.0002707,2]
[426408995,1782355849000,-845.49021668,0.0002707,2]
[426408997,1782355849000,-783.66067673,0.0002707,2]
[426408934,1782355849000,-562.42774378,0.00026519,2]
[426409001,1782355849000,-896.45000278,0.00027081,2]
[426409000,1782355849000,-937.23568509,0.00027081,2]
[426408986,1782355849000,-844.5128755,0.00027032,2]
[426408971,1782355849000,-151.0,0.000268,2]
[426408998,1782355849000,-801.79187789,0.0002707,2]
[426408968,1782355849000,-2670974.25713719,0.000268,2]
[426408970,1782355849000,-151.0,0.000268,2]
[426408941,1782355849000,-200.35527559,0.00026519,2]
[426408940,1782355849000,-463.39240914,0.00026519,2]
[426408944,1782355849000,-237.40521453,0.00026519,2]
[426408943,1782355849000,-167.1509733,0.00026519,2]
[426408945,1782355849000,-621.82922914,0.00026519,2]
[426408946,1782355849000,-660.57481692,0.00026519,2]
[426408953,1782355849000,-186.67240603,0.00026519,2]
[426408949,1782355849000,-210.81274776,0.00026519,2]
[426408948,1782355849000,-214.27175511,0.00026519,2]
[426408947,1782355849000,-383.21313324,0.00026519,2]
[426408950,1782355849000,-160.27131047,0.00026519,2]
[426408951,1782355849000,-409.30711673,0.00026519,2]
[426408954,1782355849000,-160.2777222,0.00026519,2]
[426408937,1782355849000,-160.26978715,0.00026519,2]
[426408955,1782355849000,-199.94871593,0.00026519,2]
[426408952,1782355849000,-360.34266976,0.00026519,2]
[426408967,1782355849000,-494.08631253,0.000268,15]
[426408963,1782355849000,-160.27138776,0.00026519,2]
[426408964,1782355849000,-739.63707186,0.00026519,2]
[426408965,1782355849000,-2000.0,0.00026667,7]
[426408962,1782355849000,-200.84098654,0.00026519,2]
[426408966,1782355849000,-235.83883317,0.00026799,10]
[426408959,1782355849000,-160.2793327,0.00026519,2]
[426408956,1782355849000,-160.28253404,0.00026519,2]
[426408961,1782355849000,-160.7132777,0.00026519,2]
[426408969,1782355849000,-151.0,0.000268,2]
[426408957,1782355849000,-528.43496922,0.00026519,2]
[426408960,1782355849000,-160.28257499,0.00026519,2]
[426408958,1782355849000,-160.60777993,0.00026519,2]
[426409024,1782355850000,-4200.4084576,0.0002739,2]
[426409043,1782355850000,-151.0,0.00027397,2]
[426409032,1782355850000,-251.043026,0.00027397,2]
[426409033,1782355850000,-151.0,0.00027397,2]
[426409034,1782355850000,-151.0,0.00027397,2]
[426409037,1782355850000,-151.0,0.00027397,2]
[426409041,1782355850000,-151.0,0.00027397,2]
[426409039,1782355850000,-151.0,0.00027397,2]
[426409035,1782355850000,-151.0,0.00027397,2]
[426409040,1782355850000,-151.0,0.00027397,2]
[426409038,1782355850000,-151.0,0.00027397,2]
[426409036,1782355850000,-151.0,0.00027397,2]
[426409053,1782355850000,-1792.696862,0.00027397,2]
[426409044,1782355850000,-151.0,0.00027397,2]
[426409046,1782355850000,-151.0,0.00027397,2]
[426409045,1782355850000,-300.0,0.00027397,2]
[426409047,1782355850000,-151.0,0.00027397,2]
[426409051,1782355850000,-1792.696862,0.00027397,2]
[426409055,1782355850000,-1792.696862,0.00027397,2]
[426409049,1782355850000,-944.33,0.00027397,2]
[426409050,1782355850000,-1792.696862,0.00027397,2]
[426409048,1782355850000,-151.0,0.00027397,2]
[426409052,1782355850000,-1792.696862,0.00027397,2]
[426409054,1782355850000,-1792.696862,0.00027397,2]
[426409025,1782355850000,-182.9720026,0.00027397,7]
[426409042,1782355850000,-151.0,0.00027397,2]
[426409058,1782355850000,-1792.696862,0.00027397,2]
[426409015,1782355850000,-1083.42685138,0.00027081,2]
[426409027,1782355850000,-676.20876552,0.00027397,2]
[426409003,1782355850000,-775.76833439,0.00027081,2]
[426409004,1782355850000,-774.54982548,0.00027081,2]
[426409006,1782355850000,-1005.59847609,0.00027081,2]
[426409002,1782355850000,-847.71913201,0.00027081,2]
[426409007,1782355850000,-1661.4849721,0.00027081,2]
[426409005,1782355850000,-765.32328039,0.00027081,2]
[426409008,1782355850000,-818.85261065,0.00027081,2]
[426409010,1782355850000,-883.50457707,0.00027081,2]
[426409009,1782355850000,-872.70983175,0.00027081,2]
[426409014,1782355850000,-1110.87246981,0.00027081,2]
[426409013,1782355850000,-1573.65820007,0.00027081,2]
[426409016,1782355850000,-1045.55619311,0.00027081,2]
[426409012,1782355850000,-1280.27082275,0.00027081,2]
[426409011,1782355850000,-1244.58875148,0.00027081,2]
[426409017,1782355850000,-808.74299841,0.00027081,2]
[426409018,1782355850000,-941.74892539,0.00027081,2]
[426409020,1782355850000,-825.71852115,0.00027081,2]
[426409019,1782355850000,-863.65716072,0.00027081,2]
[426409022,1782355850000,-163.05,0.00027123,2]
[426409021,1782355850000,-924.54633983,0.00027081,2]
[426409031,1782355850000,-151.0,0.00027397,2]
[426409030,1782355850000,-530.57,0.00027397,2]
[426409028,1782355850000,-1500.0,0.00027397,2]
[426409026,1782355850000,-272.44776414,0.00027397,7]
[426409023,1782355850000,-633.0,0.00027178,5]
[426409029,1782355850000,-162.46,0.00027397,15]
[426409057,1782355850000,-1792.696862,0.00027397,2]
[426409086,1782355850000,-1000.0,0.0002745,2]
[426409062,1782355850000,-1026.01,0.00027397,2]
[426409089,1782355850000,-175.42733258,0.00027468,2]
[426409092,1782355850000,-500.0,0.000275,7]
[426409091,1782355850000,-951.0,0.000275,7]
[426409098,1782355850000,-150.0,0.00027596,2]
[426409094,1782355850000,-200.0,0.00027571,2]
[426409099,1782355850000,-676.20876552,0.00027608,2]
[426409093,1782355850000,-2000.0,0.000275,2]
[426409095,1782355850000,-4768.0,0.00027578,10]
[426409096,1782355850000,-150.0,0.00027596,2]
[426409097,1782355850000,-150.0,0.00027596,2]
[426409101,1782355850000,-676.20876552,0.00027819,2]
[426409100,1782355850000,-422.06770668,0.00027712,2]
[426409102,1782355850000,-1055.28144069,0.00027874,2]
[426409110,1782355850000,-914.45,0.000279,7]
[426409105,1782355850000,-953.6687149,0.00027874,2]
[426409107,1782355850000,-1031.01433862,0.00027874,2]
[426409103,1782355850000,-966.68264635,0.00027874,2]
[426409106,1782355850000,-992.41219999,0.00027874,2]
[426409108,1782355850000,-967.11027135,0.00027874,2]
[426409104,1782355850000,-1120.47533068,0.00027874,2]
[426409109,1782355850000,-1188.20197739,0.00027874,2]
[426409113,1782355850000,-1001.39986429,0.00027913,2]
[426409111,1782355850000,-1014.58826002,0.00027913,2]
[426409112,1782355850000,-940.39281208,0.00027913,2]
[426409114,1782355850000,-962.15025346,0.00027913,2]
[426409090,1782355850000,-205.41279694,0.000275,2]
[426409088,1782355850000,-1880.96,0.0002745,2]
[426409056,1782355850000,-1792.696862,0.00027397,2]
[426409083,1782355850000,-1000.0,0.0002745,2]
[426409085,1782355850000,-1000.0,0.0002745,2]
[426409066,1782355850000,-395.18846223,0.00027397,2]
[426409063,1782355850000,-30740.25,0.00027397,10]
[426409064,1782355850000,-25616.88,0.00027397,10]
[426409060,1782355850000,-1792.696862,0.00027397,2]
[426409061,1782355850000,-1792.696862,0.00027397,2]
[426409059,1782355850000,-1792.696862,0.00027397,2]
[426409068,1782355850000,-320.58920084,0.00027397,2]
[426409067,1782355850000,-592.78269334,0.00027397,2]
[426409069,1782355850000,-199.65723673,0.00027397,2]
[426409076,1782355850000,-798.62894692,0.00027397,2]
[426409074,1782355850000,-399.31447346,0.00027397,2]
[426409065,1782355850000,-197.59423111,0.00027397,2]
[426409070,1782355850000,-169.84093866,0.00027397,2]
[426409073,1782355850000,-679.36375465,0.00027397,2]
[426409080,1782355850000,-1000.0,0.0002745,2]
[426409087,1782355850000,-1000.0,0.0002745,2]
[426409084,1782355850000,-1000.0,0.0002745,2]
[426409078,1782355850000,-537.58,0.000274,7]
[426409082,1782355850000,-1588.72,0.0002745,2]
[426409081,1782355850000,-1000.0,0.0002745,2]
[426409071,1782355850000,-339.68187732,0.00027397,2]
[426409075,1782355850000,-598.97171019,0.00027397,2]
[426409077,1782355850000,-159.36,0.000274,7]
[426409072,1782355850000,-509.52281599,0.00027397,2]
[426409079,1782355850000,-1000.0,0.0002745,2]
[426409153,1782355851000,-484.652096,0.00028355,7]
[426409151,1782355851000,-200.0,0.00028321,2]
[426409156,1782355851000,-492.54799,0.00028355,7]
[426409155,1782355851000,-469.147669,0.00028355,7]
[426409143,1782355851000,-258.65,0.00028,2]
[426409152,1782355851000,-385.732979,0.00028355,7]
[426409149,1782355851000,-676.20876552,0.0002824,2]
[426409147,1782355851000,-152.0,0.00028085,4]
[426409146,1782355851000,-676.20876552,0.0002803,2]
[426409148,1782355851000,-153.2609892,0.00028218,2]
[426409150,1782355851000,-1000.0,0.00028315,2]
[426409154,1782355851000,-313.408045,0.00028355,7]
[426409169,1782355851000,-1361.0,0.00028549,2]
[426409157,1782355851000,-422.14557272,0.00028356,2]
[426409159,1782355851000,-151.0,0.00028362,2]
[426409164,1782355851000,-791.0,0.00028425,5]
[426409167,1782355851000,-2000.0,0.000285,2]
[426409160,1782355851000,-482.3,0.00028387,2]
[426409165,1782355851000,-676.20876552,0.00028451,2]
[426409161,1782355851000,-151.0,0.00028387,2]
[426409166,1782355851000,-800.0,0.000285,2]
[426409163,1782355851000,-151.0,0.00028415,2]
[426409162,1782355851000,-151.0,0.00028415,2]
[426409168,1782355851000,-611.0,0.00028507,2]
[426409145,1782355851000,-600.0,0.00028,2]
[426409158,1782355851000,-1684.0,0.00028356,2]
[426409138,1782355851000,-800.0,0.00028,2]
[426409129,1782355851000,-970.4915981,0.00027925,2]
[426409141,1782355851000,-160.0,0.00028,2]
[426409175,1782355851000,-755.54102511,0.00028658,2]
[426409118,1782355851000,-930.92200127,0.00027925,2]
[426409116,1782355851000,-1075.74000333,0.00027924,2]
[426409115,1782355851000,-1124.68282211,0.00027924,2]
[426409120,1782355851000,-1206.71817131,0.00027925,2]
[426409117,1782355851000,-1017.26295841,0.00027924,2]
[426409121,1782355851000,-1993.78196652,0.00027925,2]
[426409119,1782355851000,-929.45979058,0.00027925,2]
[426409124,1782355851000,-1536.3249873,0.00027925,2]
[426409122,1782355851000,-982.62313277,0.00027925,2]
[426409123,1782355851000,-1047.2517981,0.00027925,2]
[426409126,1782355851000,-1888.38984008,0.00027925,2]
[426409125,1782355851000,-1493.50650178,0.00027925,2]
[426409133,1782355851000,-998.28618365,0.00027959,2]
[426409130,1782355851000,-1036.38859286,0.00027925,2]
[426409128,1782355851000,-1300.11222165,0.00027925,2]
[426409131,1782355851000,-1130.09871047,0.00027925,2]
[426409134,1782355851000,-849.20469331,0.00027959,2]
[426409127,1782355851000,-1333.04696378,0.00027925,2]
[426409132,1782355851000,-990.86222538,0.00027925,2]
[426409135,1782355851000,-502663.4465842,0.00027993,2]
[426409137,1782355851000,-201.5339966,0.00027993,2]
[426409136,1782355851000,-4047.9185295,0.00027993,2]
[426409140,1782355851000,-6577.62472137,0.00028,2]
[426409144,1782355851000,-258.65,0.00028,2]
[426409142,1782355851000,-643.0,0.00028,2]
[426409170,1782355851000,-1277.0,0.00028549,2]
[426409139,1782355851000,-108318.51959842,0.00028,5]
[426409179,1782355851000,-179.11178271,0.00028767,2]
[426409204,1782355851000,-200.0,0.00029,2]
[426409213,1782355851000,-500.0,0.00029,2]
[426409229,1782355851000,-537.58,0.00029,7]
[426409206,1782355851000,-200.0,0.00029,2]
[426409209,1782355851000,-500.0,0.00029,2]
[426409207,1782355851000,-200.0,0.00029,2]
[426409205,1782355851000,-200.0,0.00029,2]
[426409210,1782355851000,-500.0,0.00029,2]
[426409208,1782355851000,-500.0,0.00029,2]
[426409214,1782355851000,-200.0,0.00029,2]
[426409212,1782355851000,-200.0,0.00029,2]
[426409211,1782355851000,-800.0,0.00029,2]
[426409203,1782355851000,-504.44,0.00029,2]
[426409215,1782355851000,-500.0,0.00029,2]
[426409176,1782355851000,-377.77051255,0.00028658,2]
[426409221,1782355851000,-500.0,0.00029,2]
[426409222,1782355851000,-500.0,0.00029,2]
[426409220,1782355851000,-500.0,0.00029,2]
[426409223,1782355851000,-500.0,0.00029,2]
[426409226,1782355851000,-603.77,0.00029,2]
[426409218,1782355851000,-500.0,0.00029,2]
[426409219,1782355851000,-500.0,0.00029,2]
[426409224,1782355851000,-500.0,0.00029,2]
[426409225,1782355851000,-500.0,0.00029,2]
[426409227,1782355851000,-511.08205022,0.00029,2]
[426409228,1782355851000,-159.36,0.00029,7]
[426409216,1782355851000,-500.0,0.00029,2]
[426409196,1782355851000,-500.0,0.00029,2]
[426409217,1782355851000,-331.34,0.00029,2]
[426409197,1782355851000,-500.0,0.00029,2]
[426409201,1782355851000,-500.0,0.00029,2]
[426409171,1782355851000,-1230.0,0.00028549,2]
[426409178,1782355851000,-676.20876552,0.00028662,2]
[426409172,1782355851000,-216.0,0.00028549,2]
[426409177,1782355851000,-188.88525628,0.00028658,2]
[426409173,1782355851000,-6084.0,0.00028549,2]
[426409180,1782355851000,-1197.94342037,0.00028801,2]
[426409182,1782355851000,-5961.0,0.00028843,10]
[426409181,1782355851000,-484.652096,0.00028828,7]
[426409191,1782355851000,-500.0,0.00029,2]
[426409189,1782355851000,-500.0,0.00029,2]
[426409185,1782355851000,-676.20876552,0.00028872,2]
[426409187,1782355851000,-500.0,0.00029,2]
[426409174,1782355851000,-484.652096,0.00028592,7]
[426409190,1782355851000,-500.0,0.00029,2]
[426409198,1782355851000,-500.0,0.00029,2]
[426409183,1782355851000,-150.0,0.00028855,2]
[426409199,1782355851000,-500.0,0.00029,2]
[426409200,1782355851000,-500.0,0.00029,2]
[426409195,1782355851000,-500.0,0.00029,2]
[426409192,1782355851000,-500.0,0.00029,2]
[426409202,1782355851000,-500.0,0.00029,2]
[426409193,1782355851000,-500.0,0.00029,2]
[426409194,1782355851000,-500.0,0.00029,2]
[426409188,1782355851000,-500.0,0.00029,2]
[426409184,1782355851000,-150.0,0.00028855,2]
[426409186,1782355851000,-500.0,0.00029,2]
[426409253,1782355852000,-500.0,0.00029019,2]
[426409251,1782355852000,-500.0,0.00029019,2]
[426409248,1782355852000,-383.82220307,0.00029007,2]
[426409252,1782355852000,-500.0,0.00029019,2]
[426409249,1782355852000,-150.0,0.00029007,2]
[426409254,1782355852000,-485.28881228,0.00029019,2]
[426409257,1782355852000,-484.652096,0.00029064,7]
[426409256,1782355852000,-611.0,0.00029027,2]
[426409258,1782355852000,-200.0,0.00029071,2]
[426409261,1782355852000,-486059.19014911,0.0002912,20]
[426409259,1782355852000,-676.20876552,0.00029083,2]
[426409260,1782355852000,-170.08,0.00029104,3]
[426409250,1782355852000,-807.0,0.00029012,2]
[426409255,1782355852000,-150.0,0.00029019,2]
[426409247,1782355852000,-528.89720843,0.00029,2]
[426409231,1782355852000,-840.51260947,0.00029,2]
[426409245,1782355852000,-500.0,0.00029,7]
[426409239,1782355852000,-164693.31,0.00029,2]
[426409236,1782355852000,-220.37104519,0.00029,2]
[426409235,1782355852000,-444.87733802,0.00029,2]
[426409230,1782355852000,-301.60325398,0.00029,2]
[426409238,1782355852000,-258.65,0.00029,2]
[426409234,1782355852000,-1003.91954695,0.00029,2]
[426409246,1782355852000,-189.89,0.00029,7]
[426409232,1782355852000,-191.83354734,0.00029,2]
[426409237,1782355852000,-1598.90004572,0.00029,2]
[426409240,1782355852000,-500.0,0.00029,7]
[426409241,1782355852000,-500.0,0.00029,7]
[426409243,1782355852000,-500.0,0.00029,7]
[426409244,1782355852000,-500.35893196,0.00029,2]
[426409242,1782355852000,-500.0,0.00029,7]
[426409233,1782355852000,-10377.2619394,0.00029,2]
[426409262,1782355852000,-363.98,0.0002912,20]
[426409264,1782355852000,-224.45,0.00024658,2]
[426409265,1782355852000,-21347.4,0.00027397,10]
[426409263,1782355852000,-4050.148805,0.0002912,20]
[426409296,1782355852000,-175.42733258,0.00029468,2]
[426409295,1782355852000,-484.652096,0.00029301,7]
[426409289,1782355852000,-185.23,0.00029209,2]
[426409293,1782355852000,-482.4,0.00029237,2]
[426409290,1782355852000,-151.0,0.00029209,2]
[426409286,1782355852000,-1516.79759193,0.00029189,2]
[426409287,1782355852000,-1318.44849554,0.00029189,2]
[426409291,1782355852000,-151.0,0.00029209,2]
[426409292,1782355852000,-643.17,0.00029237,2]
[426409288,1782355852000,-1156.00592961,0.00029189,2]
[426409285,1782355852000,-1555.22145774,0.00029189,2]
[426409283,1782355852000,-1792.37915185,0.00029189,2]
[426409282,1782355852000,-1742.42425208,0.00029189,2]
[426409284,1782355852000,-2203.12148009,0.00029189,2]
[426409294,1782355852000,-676.20876552,0.00029294,2]
[426409281,1782355852000,-2326.07896094,0.00029189,2]
[426409280,1782355852000,-1407.83786653,0.00029189,2]
[426409272,1782355852000,-1202.85006172,0.00029138,2]
[426409273,1782355852000,-1097.12494742,0.00029178,2]
[426409267,1782355852000,-1231.1616808,0.00029138,2]
[426409266,1782355852000,-382678.68104589,0.0002912,20]
[426409268,1782355852000,-1127.79642074,0.00029138,2]
[426409269,1782355852000,-1307.22121913,0.00029138,2]
[426409271,1782355852000,-1157.81423332,0.00029138,2]
[426409274,1782355852000,-1122.50862904,0.00029178,2]
[426409276,1782355852000,-1186.80678481,0.00029189,2]
[426409275,1782355852000,-1255.03000389,0.00029189,2]
[426409279,1782355852000,-1084.36975568,0.00029189,2]
[426409277,1782355852000,-1252.97015947,0.00029189,2]
[426409270,1782355852000,-1112.61350072,0.00029138,2]
[426409278,1782355852000,-1086.07566815,0.00029189,2]
[426409337,1782355853000,-150.0,0.00029863,2]
[426409333,1782355853000,-422.0,0.00029863,2]
[426409335,1782355853000,-422.0,0.00029863,2]
[426409332,1782355853000,-422.0,0.00029863,2]
[426409328,1782355853000,-422.0,0.00029863,2]
[426409334,1782355853000,-422.0,0.00029863,2]
[426409331,1782355853000,-422.0,0.00029863,2]
[426409330,1782355853000,-422.0,0.00029863,2]
[426409336,1782355853000,-294.54236203,0.00029863,2]
[426409325,1782355853000,-422.0,0.00029863,2]
[426409329,1782355853000,-150.0,0.00029863,2]
[426409339,1782355853000,-151.0,0.000299,7]
[426409342,1782355853000,-11509.21876402,0.000299,2]
[426409344,1782355853000,-11509.21876402,0.000299,2]
[426409347,1782355853000,-11509.21876402,0.000299,2]
[426409338,1782355853000,-951.0,0.000299,7]
[426409343,1782355853000,-11509.21876402,0.000299,2]
[426409340,1782355853000,-11509.21876417,0.000299,2]
[426409345,1782355853000,-11509.21876402,0.000299,2]
[426409341,1782355853000,-11509.21876402,0.000299,2]
[426409346,1782355853000,-11509.21876402,0.000299,2]
[426409348,1782355853000,-11509.21876402,0.000299,2]
[426409352,1782355853000,-11509.21876402,0.000299,2]
[426409327,1782355853000,-422.0,0.00029863,2]
[426409349,1782355853000,-11509.21876402,0.000299,2]
[426409326,1782355853000,-422.0,0.00029863,2]
[426409311,1782355853000,-153.05995072,0.00029863,2]
[426409357,1782355853000,-11509.21876402,0.000299,2]
[426409302,1782355853000,-611.0,0.00029547,3]
[426409304,1782355853000,-331.21252536,0.00029691,2]
[426409297,1782355853000,-800.0,0.000295,2]
[426409299,1782355853000,-2000.0,0.000295,2]
[426409300,1782355853000,-676.20876552,0.00029505,2]
[426409298,1782355853000,-914.45,0.000295,7]
[426409303,1782355853000,-791.0,0.00029671,5]
[426409305,1782355853000,-676.20876552,0.00029715,2]
[426409301,1782355853000,-484.652096,0.00029537,7]
[426409306,1782355853000,-484.652096,0.00029773,7]
[426409309,1782355853000,-150.0,0.00029863,2]
[426409307,1782355853000,-186.90228318,0.000298,2]
[426409314,1782355853000,-422.0,0.00029863,2]
[426409312,1782355853000,-422.0,0.00029863,2]
[426409308,1782355853000,-200.0,0.0002982,2]
[426409315,1782355853000,-422.0,0.00029863,2]
[426409316,1782355853000,-422.0,0.00029863,2]
[426409313,1782355853000,-422.0,0.00029863,2]
[426409310,1782355853000,-150.0,0.00029863,2]
[426409317,1782355853000,-422.0,0.00029863,2]
[426409321,1782355853000,-422.0,0.00029863,2]
[426409323,1782355853000,-422.0,0.00029863,2]
[426409322,1782355853000,-422.0,0.00029863,2]
[426409320,1782355853000,-422.0,0.00029863,2]
[426409324,1782355853000,-422.0,0.00029863,2]
[426409318,1782355853000,-422.0,0.00029863,2]
[426409360,1782355853000,-151.0,0.000299,7]
[426409319,1782355853000,-422.0,0.00029863,2]
[426409351,1782355853000,-11509.21876402,0.000299,2]
[426409385,1782355853000,-151.0,0.0003,7]
[426409384,1782355853000,-151.0,0.0003,7]
[426409397,1782355853000,-1792.696862,0.0003,7]
[426409396,1782355853000,-281.43,0.0003,2]
[426409394,1782355853000,-151.0,0.0003,7]
[426409387,1782355853000,-187.89,0.0003,2]
[426409391,1782355853000,-154.839608,0.0003,7]
[426409398,1782355853000,-200.0,0.0003,2]
[426409393,1782355853000,-151.0,0.0003,7]
[426409388,1782355853000,-672.58,0.0003,2]
[426409390,1782355853000,-436.55,0.0003,2]
[426409395,1782355853000,-151.0,0.0003,7]
[426409392,1782355853000,-234.02,0.0003,2]